fUSD/lending_fUSD_20260427
["ID","MTS","AMOUNT","RATE_DAILY","PERIOD"]
[421242361,1777287077178,-529.87,0.00033698,120]
[421242362,1777287077187,-500.0,0.00033698,120]
[421242363,1777287077197,-890.53,0.00033698,120]
[421242364,1777287077207,-500.0,0.00033698,120]
[421242365,1777287077217,-633.28,0.00033698,120]
[421242366,1777287077227,-1042.08,0.00033698,120]
[421242367,1777287077236,-500.0,0.00033698,120]
[421242368,1777287077245,-1031.26,0.00033698,120]
[421242369,1777287077254,-500.0,0.00033698,120]
[421242370,1777287077264,-433.5940852,0.00033698,120]
[421242371,1777287077273,-500.0,0.00033698,120]
[421242372,1777287077282,-789.82,0.00033698,120]
[421242373,1777287077291,-500.0,0.00033698,120]
[421242374,1777287077300,-500.0,0.00033698,120]
[421242375,1777287077310,-500.0,0.00033698,120]
[421242376,1777287077319,-238.86855147,0.00033698,120]
[421242377,1777287077330,-1044.44,0.00033698,7]
[421242378,1777287077339,-500.0,0.00033698,120]
[421242379,1777287077348,-500.0,0.00033698,120]
[421242380,1777287077358,-500.0,0.00033698,120]
[421242381,1777287077367,-500.0,0.00033698,120]
[421242382,1777287077377,-500.0,0.00033698,120]
[421242383,1777287077386,-2152.64,0.00033698,120]
[421242384,1777287077396,-500.0,0.00033698,120]
[421242385,1777287077406,-500.0,0.00033698,120]
[421242386,1777287077415,-500.0,0.00033698,120]
[421242387,1777287077425,-500.0,0.00033698,120]
[421242388,1777287077435,-951.45,0.00033698,120]
[421242389,1777287077444,-10570.76,0.00033698,120]
[421242390,1777287077454,-500.0,0.00033698,120]
[421242391,1777287077464,-953.25,0.00033698,120]
[421242392,1777287077474,-500.0,0.00033698,120]
[421242393,1777287077484,-628.16971449,0.00033698,120]
[421242394,1777287077494,-683.94,0.00033698,120]
[421242395,1777287077504,-500.0,0.00033698,120]
[421242396,1777287077514,-500.0,0.00033698,120]
[421242397,1777287077523,-1457.61,0.00033698,120]
[421242398,1777287077532,-500.0,0.00033698,120]
[421242399,1777287077541,-500.0,0.00033698,120]
[421242400,1777287077551,-853.59,0.00033698,120]
[421242401,1777287077560,-500.0,0.00033698,120]
[421242402,1777287077570,-365.26005048,0.00033698,120]
[421242403,1777287077579,-927.26,0.00033698,120]
[421242404,1777287077589,-692.0,0.00033698,120]
[421242405,1777287077598,-500.0,0.00033698,120]
[421242406,1777287077607,-1072.51,0.00033698,120]
[421242407,1777287077617,-2915.57,0.00033698,120]
[421242408,1777287077626,-500.0,0.00033698,120]
[421242409,1777287077635,-731.44,0.00033698,120]
[421242410,1777287077644,-500.0,0.00033698,120]
[421242411,1777287077654,-701.43,0.00033698,120]
[421242412,1777287077665,-500.0,0.00033698,120]
[421242413,1777287077674,-954.88,0.00033698,120]
[421242414,1777287077683,-838.15,0.00033698,120]
[421242415,1777287077693,-1783.16,0.00033698,120]
[421242416,1777287077702,-500.0,0.00033698,120]
[421242417,1777287077712,-500.0,0.00033698,120]
[421242418,1777287077721,-500.0,0.00033698,120]
[421242419,1777287077731,-500.0,0.00033698,120]
[421242420,1777287077740,-4705.11,0.00033698,120]
[421242421,1777287077750,-1730.6,0.00033698,120]
[421242422,1777287077759,-500.0,0.00033698,120]
[421242423,1777287077769,-500.0,0.00033698,120]
[421242424,1777287077778,-1123.77,0.00033698,120]
[421242425,1777287077787,-500.0,0.00033698,120]
[421242426,1777287077797,-268.21025426,0.00033698,120]
[421242427,1777287077806,-500.0,0.00033698,120]
[421242428,1777287077816,-500.0,0.00033698,120]
[421242429,1777287077826,-1408.68,0.00033698,120]
[421242430,1777287077836,-714.81,0.00033698,120]
[421242431,1777287077845,-1779.59,0.00033698,120]
[421242432,1777287077855,-500.0,0.00033698,120]
[421242433,1777287077864,-667.82,0.00033698,120]
[421242434,1777287077874,-500.0,0.00033698,120]
[421242435,1777287077883,-5381.05,0.00033698,120]
[421242436,1777287077893,-922.62,0.00033698,120]
[421242437,1777287077903,-625.44,0.00033698,5]
[421242438,1777287077913,-500.0,0.00033698,120]
[421242439,1777287077922,-274.581385,0.00033698,7]
[421242440,1777287077932,-1690.78,0.00033698,120]
[421242441,1777287077942,-2035.1,0.00033698,120]
[421242442,1777287077951,-674.61,0.00033698,120]
[421242443,1777287077961,-274.581385,0.00033698,7]
[421242444,1777287077970,-500.0,0.00033698,120]
[421242445,1777287077980,-500.0,0.00033698,120]
[421242446,1777287077990,-1164.41,0.00033698,120]
[421242447,1777287078000,-274.581385,0.00033698,7]
[421242448,1777287078011,-605.98808401,0.00033698,120]
[421242449,1777287078020,-1082.08,0.00033698,120]
[421242450,1777287078030,-1043.04,0.00033698,120]
[421242451,1777287078040,-260.75234891,0.00033698,120]
[421242452,1777287078049,-998.96,0.00033698,120]
[421242453,1777287078060,-500.0,0.00033698,120]
[421242454,1777287078207,-784.08,0.00033698,120]
[421242455,1777287078217,-1079.64,0.00033698,120]
[421242456,1777287078226,-274.581379,0.00033698,7]
[421242457,1777287078236,-1143.94,0.00033698,120]
[421242458,1777287078246,-500.0,0.00033698,120]
[421242459,1777287078256,-1451.57,0.00033698,120]
[421242460,1777287078266,-500.0,0.00033698,120]
[421242461,1777287078276,-500.0,0.00033698,120]
[421242462,1777287078286,-819.21,0.00033698,120]
[421242463,1777287078297,-1138.56,0.00033698,120]
[421242464,1777287078307,-601.09,0.00033698,120]
[421242465,1777287078317,-4201.7,0.00033698,120]
[421242466,1777287078327,-500.0,0.00033698,120]
[421242467,1777287078337,-996.55,0.00033698,120]
[421242468,1777287078346,-1047.55,0.00033698,120]
[421242469,1777287078356,-541.91,0.00033698,120]
[421242470,1777287078365,-500.0,0.00033698,120]
[421242471,1777287078375,-500.0,0.00033698,120]
[421242472,1777287078384,-500.0,0.00033698,120]
[421242473,1777287078392,-542.77212423,0.00033698,120]
[421242474,1777287078402,-795.18,0.00033698,120]
[421242475,1777287078411,-1162.36,0.00033698,120]
[421242476,1777287078420,-500.0,0.00033698,120]
[421242477,1777287078430,-500.0,0.00033698,120]
[421242478,1777287078439,-845.1,0.00033698,120]
[421242479,1777287078448,-1487.38,0.00033698,120]
[421242480,1777287078457,-500.0,0.00033698,120]
[421242481,1777287078467,-500.0,0.00033698,120]
[421242482,1777287078476,-500.0,0.00033698,120]
[421242483,1777287078485,-500.0,0.00033698,120]
[421242484,1777287078495,-494.86140041,0.00033698,120]
[421242485,1777287078504,-500.0,0.00033698,120]
[421242486,1777287078514,-898.94,0.00033698,120]
[421242487,1777287078524,-500.0,0.00033698,120]
[421242488,1777287078534,-500.0,0.00033698,120]
[421242489,1777287078545,-500.0,0.00033698,120]
[421242490,1777287078554,-500.0,0.00033698,120]
[421242491,1777287078563,-500.62,0.00033698,120]
[421242492,1777287078573,-2636.09,0.00033698,120]
[421242493,1777287078583,-500.0,0.00033698,120]
[421242494,1777287078592,-1789.45,0.00033698,120]
[421242495,1777287078602,-500.0,0.00033698,120]
[421242496,1777287078611,-1085.3,0.00033698,120]
[421242497,1777287078620,-892.08,0.00033698,120]
[421242498,1777287078630,-500.0,0.00033698,120]
[421242499,1777287078639,-631.37,0.00033698,120]
[421242500,1777287078648,-581.62,0.00033698,120]
[421242501,1777287078657,-808.43,0.00033698,120]
[421242502,1777287078667,-741.62,0.00033698,120]
[421242503,1777287078676,-500.0,0.00033698,120]
[421242504,1777287078686,-500.0,0.00033698,120]
[421242505,1777287078695,-500.0,0.00033698,120]
[421242506,1777287078705,-500.0,0.00033698,120]
[421242507,1777287078715,-762.27,0.00033698,120]
[421242508,1777287078725,-1157.96,0.00033698,120]
[421242509,1777287078734,-633.93,0.00033698,120]
[421242510,1777287078744,-874.69,0.00033698,120]
[421242511,1777287078753,-500.0,0.00033698,120]
[421242512,1777287078763,-900.98,0.00033698,120]
[421242513,1777287078772,-500.0,0.00033698,120]
[421242514,1777287078782,-10204.73,0.00033698,120]
[421242515,1777287078791,-1526.17,0.00033698,120]
[421242516,1777287078800,-500.0,0.00033698,120]
[421242517,1777287078810,-500.0,0.00033698,120]
[421242518,1777287078821,-500.0,0.00033698,120]
[421242519,1777287078830,-891.6,0.00033698,120]
[421242520,1777287078839,-500.0,0.00033698,120]
[421242521,1777287078849,-1367.53,0.00033698,120]
[421242522,1777287078858,-500.0,0.00033698,120]
[421242523,1777287078868,-683.25,0.00033698,120]
[421242524,1777287078878,-737.72,0.00033698,120]
[421242525,1777287078888,-500.0,0.00033698,120]
[421242526,1777287078899,-500.0,0.00033698,120]
[421242527,1777287078909,-10627.51,0.00033698,11]
[421242528,1777287078918,-500.0,0.00033698,120]
[421242529,1777287078928,-1508.4,0.00033698,120]
[421242530,1777287078938,-500.0,0.00033698,120]
[421242531,1777287078948,-944.61,0.00033698,120]
[421242532,1777287078958,-1952.39,0.00033698,120]
[421242533,1777287078968,-992.31,0.00033698,120]
[421242534,1777287078978,-469.82613309,0.00033698,120]
[421242535,1777287078987,-644.32,0.00033698,120]
[421242536,1777287078996,-388.08665516,0.00033698,120]
[421242537,1777287079006,-500.0,0.00033698,120]
[421242538,1777287079017,-500.0,0.00033698,120]
[421242539,1777287079026,-855.86,0.00033698,120]
[421242540,1777287079036,-500.0,0.00033698,120]
[421242541,1777287079046,-938.15,0.00033698,120]
[421242542,1777287079055,-407.41302646,0.00033698,120]
[421242543,1777287079065,-500.0,0.00033698,120]
[421242544,1777287079075,-976.87,0.00033698,120]
[421242545,1777287079085,-500.0,0.00033698,120]
[421242546,1777287079094,-500.0,0.00033698,120]
[421242547,1777287079104,-505.03,0.00033698,120]
[421242548,1777287079113,-500.0,0.00033698,120]
[421242549,1777287079123,-889.14,0.00033698,120]
[421242550,1777287079132,-500.0,0.00033698,120]
[421242551,1777287079142,-816.73,0.00033698,120]
[421242552,1777287079151,-624.72,0.00033698,120]
[421242553,1777287079160,-9821.09,0.00033698,14]
[421242554,1777287079170,-523.03,0.00033698,120]
[421242555,1777287079180,-2650.84,0.00033698,2]
[421242556,1777287079190,-500.0,0.00033698,120]
[421242557,1777287079200,-822.98,0.00033698,120]
[421242558,1777287079210,-729.37,0.00033698,120]
[421242559,1777287079219,-1000.0,0.00033698,120]
[421242560,1777287079229,-500.0,0.00033698,120]
[421242561,1777287079240,-587.47496223,0.00033698,120]
[421242562,1777287079249,-1044.79,0.00033698,120]
[421242563,1777287079259,-2033.75,0.00033698,120]
[421242564,1777287079268,-500.0,0.00033698,120]
[421242565,1777287079277,-2315.34,0.00033698,120]
[421242566,1777287079287,-957.71,0.00033698,120]
[421242567,1777287079296,-500.0,0.00033698,120]
[421242568,1777287079305,-651.78,0.00033698,120]
[421242569,1777287079314,-1144.22,0.00033698,120]
[421242570,1777287079324,-872.94,0.00033698,120]
[421242571,1777287079334,-500.0,0.00033698,120]
[421242572,1777287079344,-500.0,0.00033698,120]
[421242573,1777287079354,-639.59768344,0.00033698,120]
[421242574,1777287079363,-500.0,0.00033698,120]
[421242575,1777287079373,-905.69,0.00033698,120]
[421242576,1777287079382,-500.0,0.00033698,120]
[421242577,1777287079392,-565.47542926,0.00033698,120]
[421242578,1777287079402,-659.77,0.00033698,120]
[421242579,1777287079411,-500.0,0.00033698,120]
[421242580,1777287079420,-572.93,0.00033698,120]
[421242581,1777287079430,-526.89,0.00033698,120]
[421242582,1777287079440,-500.0,0.00033698,30]
[421242583,1777287079450,-2198.73,0.00033698,31]
[421242584,1777287079460,-936.24,0.00033698,120]
[421242585,1777287079469,-7236.62,0.00033698,120]
[421242586,1777287079479,-1500.0,0.00033698,120]
[421242587,1777287079488,-601.2,0.00033698,120]
[421242588,1777287079498,-1282.75,0.00033698,120]
[421242589,1777287079508,-500.0,0.00033698,120]
[421242590,1777287079518,-500.0,0.00033698,120]
[421242591,1777287079528,-500.0,0.00033698,120]
[421242592,1777287079537,-459.7116052,0.00033711,3]
[421242593,1777287079547,-219.48921421,0.00033718,120]
[421242594,1777287079556,-609.98049183,0.00033804,120]
[421242595,1777287079566,-219.48921421,0.00033813,120]
[421242596,1777287079575,-150.0,0.0003383,2]
[421242597,1777287079585,-549.017,0.00033872,2]
[421242598,1777287079595,-200.0,0.00033873,2]
[421242599,1777287079605,-194.5,0.000339,120]
[421242600,1777287079615,-200.0,0.000339,12]
[421242601,1777287079625,-219.48921421,0.00033907,120]
[421242602,1777287079635,-40919.8,0.00033972,120]
[421242603,1777287079645,-5510.884336,0.00033972,120]
[421242604,1777287079654,-406.931409,0.00033972,120]
[421242605,1777287079664,-325.762595,0.00033972,120]
[421242606,1777287079674,-342.964341,0.00033972,120]
[421242607,1777287079683,-2698.281126,0.00033972,120]
[421242608,1777287079692,-338.64641114,0.00033972,120]
[421242609,1777287079702,-500.0,0.00033972,120]
[421242610,1777287079712,-500.0,0.00033972,30]
[421242611,1777287079721,-500.0,0.00033972,90]
[421242612,1777287079731,-500.0,0.00033972,120]
[421242613,1777287079741,-500.0,0.00033972,120]
[421242614,1777287079750,-387.0285497,0.00033972,120]
[421242615,1777287079760,-500.0,0.00033972,120]
[421242616,1777287079770,-500.0,0.00033972,120]
[421242617,1777287079779,-500.0,0.00033972,120]
[421242618,1777287079789,-500.0,0.00033972,30]
[421242619,1777287079798,-500.0,0.00033972,120]
[421242620,1777287079807,-500.0,0.00033972,120]
[421242621,1777287079817,-500.0,0.00033972,120]
[421242622,1777287079826,-500.0,0.00033972,120]
[421242623,1777287079838,-500.0,0.00033972,120]
[421242624,1777287079848,-500.0,0.00033972,120]
[421242625,1777287079857,-863.36,0.00033972,120]
[421242626,1777287079867,-500.0,0.00033972,2]
[421242627,1777287079876,-500.0,0.00033972,120]
[421242628,1777287079886,-599.06,0.00033972,120]
[421242629,1777287079896,-622.46657749,0.00033972,120]
[421242630,1777287079905,-640.83,0.00033972,120]
[421242631,1777287079915,-500.0,0.00033972,120]
[421242632,1777287079925,-500.0,0.00033972,120]
[421242633,1777287079935,-500.0,0.00033972,120]
[421242634,1777287079944,-500.0,0.00033972,120]
[421242635,1777287079955,-1211.95,0.00033972,120]
[421242636,1777287079965,-565.53,0.00033972,120]
[421242637,1777287079975,-500.0,0.00033972,120]
[421242638,1777287079984,-553.4,0.00033972,120]
[421242639,1777287079994,-284.16793591,0.00033972,120]
[421242640,1777287080003,-715.07,0.00033972,120]
[421242641,1777287080013,-500.0,0.00033972,120]
[421242642,1777287080023,-500.0,0.00033972,120]
[421242643,1777287080032,-938.55,0.00033972,120]
[421242644,1777287080042,-1090.36,0.00033972,120]
[421242645,1777287080052,-634.95,0.00033972,120]
[421242646,1777287080061,-500.0,0.00033972,120]
[421242647,1777287080071,-500.0,0.00033972,120]
[421242648,1777287080082,-528.14,0.00033972,120]
[421242649,1777287080091,-500.0,0.00033972,120]
[421242650,1777287080100,-500.0,0.00033972,120]
[421242651,1777287080111,-500.0,0.00033972,120]
[421242652,1777287080120,-1072.38,0.00033972,120]
[421242653,1777287080129,-1314.31,0.00033972,120]
[421242654,1777287080140,-703.47,0.00033972,120]
[421242655,1777287080150,-500.0,0.00033972,120]
[421242656,1777287080160,-563.66324499,0.00033972,120]
[421242657,1777287080169,-500.0,0.00033972,120]
[421242658,1777287080178,-500.0,0.00033972,120]
[421242659,1777287080188,-500.0,0.00033972,120]
[421242660,1777287080197,-516.81,0.00033972,120]
[421242661,1777287080207,-500.0,0.00033972,30]
[421242662,1777287080216,-2357.31,0.00033972,120]
[421242663,1777287080226,-722.01,0.00033972,120]
[421242664,1777287080235,-500.0,0.00033972,120]
[421242665,1777287080245,-500.0,0.00033972,120]
[421242666,1777287080255,-500.0,0.00033972,120]
[421242667,1777287080265,-500.0,0.00033972,120]
[421242668,1777287080275,-500.0,0.00033972,120]
[421242669,1777287080284,-500.0,0.00033972,120]
[421242670,1777287080295,-1649.9,0.00033972,30]
[421242671,1777287080645,-527.75,0.00033972,120]
[421242672,1777287080655,-500.0,0.00033972,120]
[421242673,1777287080664,-500.0,0.00033972,120]
[421242674,1777287080674,-500.0,0.00033972,120]
[421242675,1777287080684,-663.98,0.00033972,120]
[421242676,1777287080693,-752.81,0.00033972,120]
[421242677,1777287080703,-696.22,0.00033972,120]
[421242678,1777287080713,-500.0,0.00033972,120]
[421242679,1777287080723,-500.0,0.00033972,120]
[421242680,1777287080732,-1446.95,0.00033972,120]
[421242681,1777287080742,-964.96,0.00033972,120]
[421242682,1777287080751,-510.56599425,0.00033972,120]
[421242683,1777287080760,-500.0,0.00033972,120]
[421242684,1777287080770,-360.37348532,0.00033972,120]
[421242685,1777287080779,-500.0,0.00033972,120]
[421242686,1777287080789,-529.41,0.00033972,120]
[421242687,1777287080799,-500.0,0.00033972,120]
[421242688,1777287080808,-500.0,0.00033972,120]
[421242689,1777287080818,-400.02732463,0.00033972,120]
[421242690,1777287080828,-500.0,0.00033972,120]
[421242691,1777287080838,-500.0,0.00033972,120]
[421242692,1777287080847,-500.0,0.00033972,120]
[421242693,1777287080857,-1077.32,0.00033972,120]
[421242694,1777287080866,-1000.0,0.00033972,120]
[421242695,1777287080876,-765.4,0.00033972,120]
[421242696,1777287080887,-949.83,0.00033972,120]
[421242697,1777287080899,-599.76,0.00033972,120]
[421242698,1777287080909,-500.0,0.00033972,120]
[421242699,1777287080919,-500.0,0.00033972,120]
[421242700,1777287080929,-500.0,0.00033972,120]
[421242701,1777287080939,-500.0,0.00033972,120]
[421242702,1777287080949,-500.0,0.00033972,120]
[421242703,1777287080959,-500.0,0.00033972,120]
[421242704,1777287080968,-812.99,0.00033972,120]
[421242705,1777287080978,-500.0,0.00033972,120]
[421242706,1777287080987,-1319.91,0.00033972,120]
[421242707,1777287080997,-559.35,0.00033972,120]
[421242708,1777287081006,-1706.39,0.00033972,120]
[421242709,1777287081016,-500.0,0.00033972,120]
[421242710,1777287081026,-500.0,0.00033972,120]
[421242711,1777287081036,-608.04447291,0.00033972,120]
[421242712,1777287081050,-361.58711004,0.00033972,120]
[421242713,1777287081060,-500.0,0.00033972,120]
[421242714,1777287081070,-500.0,0.00033972,120]
[421242715,1777287081080,-500.0,0.00033972,120]
[421242716,1777287081089,-668.63,0.00033972,120]
[421242717,1777287081099,-500.0,0.00033972,120]
[421242718,1777287081109,-1799.8,0.00033972,30]
[421242719,1777287081118,-2310.82,0.00033972,120]
[421242720,1777287081128,-500.0,0.00033972,120]
[421242721,1777287081138,-951.83,0.00033972,120]
[421242722,1777287081148,-500.0,0.00033972,120]
[421242723,1777287081157,-500.0,0.00033972,120]
[421242724,1777287081167,-500.0,0.00033972,120]
[421242725,1777287081176,-500.0,0.00033972,120]
[421242726,1777287081186,-500.0,0.00033972,120]
[421242727,1777287081196,-500.0,0.00033972,120]
[421242728,1777287081205,-500.0,0.00033972,120]
[421242729,1777287081215,-500.0,0.00033972,120]
[421242730,1777287081224,-691.55,0.00033972,120]
[421242731,1777287081233,-500.0,0.00033972,120]
[421242732,1777287081243,-500.0,0.00033972,120]
[421242733,1777287081252,-822.42,0.00033972,120]
[421242734,1777287081261,-500.0,0.00033972,120]
[421242735,1777287081272,-690.22,0.00033972,120]
[421242736,1777287081281,-1041.51,0.00033972,120]
[421242737,1777287081290,-817.53,0.00033972,120]
[421242738,1777287081300,-500.0,0.00033972,120]
[421242739,1777287081310,-500.0,0.00033972,120]
[421242740,1777287081319,-500.0,0.00033972,120]
[421242741,1777287081329,-812.8,0.00033972,120]
[421242742,1777287081339,-500.0,0.00033972,120]
[421242743,1777287081349,-500.0,0.00033972,120]
[421242744,1777287081358,-894.99,0.00033972,120]
[421242745,1777287081367,-1018.47,0.00033972,120]
[421242746,1777287081377,-500.0,0.00033972,120]
[421242747,1777287081387,-1560.45,0.00033972,10]
[421242748,1777287081398,-500.0,0.00033972,120]
[421242749,1777287081407,-654.65,0.00033972,120]
[421242750,1777287081417,-500.0,0.00033972,120]
[421242751,1777287081426,-500.0,0.00033972,120]
[421242752,1777287081436,-497.76538341,0.00033972,120]
[421242753,1777287081447,-770.15,0.00033972,120]
[421242754,1777287081456,-500.0,0.00033972,120]
[421242755,1777287081466,-747.23,0.00033972,120]
[421242756,1777287081476,-592.21,0.00033972,120]
[421242757,1777287081485,-1047.65,0.00033972,120]
[421242758,1777287081495,-500.0,0.00033972,120]
[421242759,1777287081505,-500.0,0.00033972,120]
[421242760,1777287081515,-500.0,0.00033972,120]
[421242761,1777287081525,-500.0,0.00033972,120]
[421242762,1777287081535,-500.0,0.00033972,120]
[421242763,1777287081545,-548.93,0.00033972,120]
[421242764,1777287081555,-500.0,0.00033972,120]
[421242765,1777287081565,-500.0,0.00033972,120]
[421242766,1777287081575,-500.0,0.00033972,120]
[421242767,1777287081584,-500.0,0.00033972,120]
[421242768,1777287081594,-500.0,0.00033972,120]
[421242769,1777287081604,-1885.25,0.00033972,120]
[421242770,1777287081614,-500.0,0.00033972,120]
[421242771,1777287081624,-1242.85,0.00033972,120]
[421242772,1777287081634,-632.88,0.00033972,120]
[421242773,1777287081644,-810.82,0.00033972,120]
[421242774,1777287081654,-696.25,0.00033972,120]
[421242775,1777287081665,-500.0,0.00033972,120]
[421242776,1777287081674,-500.0,0.00033972,120]
[421242777,1777287081684,-500.0,0.00033972,120]
[421242778,1777287081694,-500.0,0.00033972,120]
[421242779,1777287081704,-500.0,0.00033972,120]
[421242780,1777287081714,-500.0,0.00033972,120]
[421242781,1777287081724,-1579.01,0.00033972,120]
[421242782,1777287081734,-500.0,0.00033972,120]
[421242783,1777287081744,-275.89817122,0.00033972,120]
[421242784,1777287081756,-601.37,0.00033972,120]
[421242785,1777287081768,-1456.44,0.00033972,120]
[421242786,1777287081778,-595.98,0.00033972,120]
[421242787,1777287081788,-1572.92,0.00033972,120]
[421242788,1777287081801,-500.0,0.00033972,120]
[421242789,1777287081811,-500.0,0.00033972,120]
[421242790,1777287081821,-1223.21,0.00033972,120]
[421242791,1777287081831,-500.0,0.00033972,120]
[421242792,1777287081841,-161.74665383,0.00033972,120]
[421242793,1777287081851,-987.31,0.00033972,120]
[421242794,1777287081861,-500.0,0.00033972,120]
[421242795,1777287081871,-500.0,0.00033972,120]
[421242796,1777287081880,-685.94,0.00033972,120]
[421242797,1777287081890,-996.26,0.00033972,120]
[421242798,1777287081899,-500.0,0.00033972,120]
[421242799,1777287081909,-500.0,0.00033972,120]
[421242800,1777287081919,-977.11,0.00033972,120]
[421242801,1777287081929,-1114.4,0.00033972,120]
[421242802,1777287081939,-922.87,0.00033972,120]
[421242803,1777287081949,-500.0,0.00033972,120]
[421242804,1777287081959,-694.64,0.00033972,120]
[421242805,1777287081968,-876.6,0.00033972,120]
[421242806,1777287081979,-1292.17,0.00033972,120]
[421242807,1777287081989,-500.0,0.00033972,120]
[421242808,1777287081998,-490.03964923,0.00033972,120]
[421242809,1777287082009,-2804.65,0.00033972,120]
[421242810,1777287082020,-831.75,0.00033972,14]
[421242811,1777287082030,-500.0,0.00033972,120]
[421242812,1777287082041,-500.0,0.00033972,14]
[421242813,1777287082051,-500.0,0.00033972,30]
[421242814,1777287082062,-695.08,0.00033972,120]
[421242815,1777287082072,-975.03,0.00033972,120]
[421242816,1777287082082,-500.0,0.00033972,120]
[421242817,1777287082093,-500.0,0.00033972,120]
[421242818,1777287082104,-500.0,0.00033972,120]
[421242819,1777287082115,-667.25,0.00033972,120]
[421242820,1777287082126,-500.0,0.00033972,120]
[421242821,1777287082138,-500.0,0.00033972,120]
[421242822,1777287082149,-514.22,0.00033972,120]
[421242823,1777287082160,-500.0,0.00033972,120]
[421242824,1777287082172,-223.55083844,0.00033972,120]
[421242825,1777287082183,-500.0,0.00033972,120]
[421242826,1777287082193,-809.84,0.00033972,120]
[421242827,1777287082204,-500.0,0.00033972,120]
[421242828,1777287082215,-808.81,0.00033972,120]
[421242829,1777287082227,-656.37,0.00033972,120]
[421242830,1777287082239,-924.49,0.00033972,120]
[421242831,1777287082249,-1754.83,0.00033972,120]
[421242832,1777287082260,-816.58,0.00033972,120]
[421242833,1777287082272,-1699.99,0.00033972,120]
[421242834,1777287082282,-963.43,0.00033972,120]
[421242835,1777287082293,-988.21,0.00033972,120]
[421242836,1777287082304,-500.0,0.00033972,120]
[421242837,1777287082314,-803.53,0.00033972,120]
[421242838,1777287082324,-983.75,0.00033972,120]
[421242839,1777287082334,-806.48,0.00033972,120]
[421242840,1777287082345,-1721.56,0.00033972,120]
[421242841,1777287082355,-899.89,0.00033972,120]
[421242842,1777287082366,-1666.52,0.00033972,120]
[421242843,1777287082377,-500.0,0.00033972,120]
[421242844,1777287082387,-903.54,0.00033972,120]
[421242845,1777287082397,-640.16,0.00033972,120]
[421242846,1777287082407,-2805.42,0.00033972,120]
[421242847,1777287082417,-500.0,0.00033972,120]
[421242848,1777287082427,-1658.74,0.00033972,120]
[421242849,1777287082437,-500.0,0.00033972,120]
[421242850,1777287082447,-500.0,0.00033972,120]
[421242851,1777287082457,-507.17,0.00033972,120]
[421242852,1777287082467,-500.0,0.00033972,120]
[421242853,1777287082478,-760.12,0.00033972,120]
[421242854,1777287082488,-1131.48,0.00033972,120]
[421242855,1777287082500,-500.0,0.00033972,120]
[421242856,1777287082512,-500.0,0.00033972,120]
[421242857,1777287082524,-1275.35,0.00033972,120]
[421242858,1777287082534,-1746.47,0.00033972,120]
[421242859,1777287082545,-1186.63,0.00033972,120]
[421242860,1777287082555,-504.0718249,0.00033972,120]